bitfinex/quotes_ETHUSD_20240817
["timestamp","ask_amount","ask_price","bid_price","bid_amount"]
[1723910738000,2.790077,2614.8,2614.4,2.86872]
[1723910740126,4.1864,2614.7,2614.2,2.86892]
[1723910740332,2.4881,2614.6,2614.2,2.86892]
[1723910745790,2.4881,2614.6,2614.3,2.86881]
[1723910746168,2.4881,2614.6,2614.3,2.86877]
[1723910746364,2.4881,2614.8,2614.5,2.86856]
[1723910751183,2.2826,2615.2,2614.8,2.86823]
[1723910751390,2.2826,2615.2,2614.7,2.86829]
[1723910751687,5.15045,2615.2,2614.7,2.86829]
[1723910751868,2.2826,2615.2,2614.7,2.86829]
[1723910752065,2.2826,2615.2,2614.9,2.86817]
[1723910753608,2.2826,2615.2,2614.6,1.318]
[1723910753769,2.2826,2615.2,2614.9,2.86817]
[1723910753973,1.318,2615.5,2615.0,2.86799]
[1723910753974,2.2826,2615.4,2615.0,2.86799]
[1723910755122,6.46823,2615.4,2614.9,2.86817]
[1723910755893,9.33594,2615.4,2614.9,2.86817]
[1723910756209,1.318,2615.2,2614.8,2.86828]
[1723910757432,1.318,2615.2,2614.6,2.86839]
[1723910757433,4.18586,2615.2,2614.6,2.86839]
[1723910757635,1.318,2615.0,2614.6,2.86839]
[1723910758839,4.18607,2615.0,2614.6,2.86839]
[1723910759589,2.2826,2615.1,2614.6,5.73681]
[1723910759792,2.2826,2615.1,2614.7,2.86839]
[1723910760331,5.15057,2615.1,2614.7,2.86839]
[1723910760831,2.2826,2615.1,2614.7,2.86839]
[1723910761124,2.2997,2615.3,2614.9,2.86816]
[1723910763103,2.2997,2615.3,2614.9,5.73628]
[1723910763356,2.2997,2615.3,2614.9,2.86812]
[1723910764011,2.2997,2615.3,2614.9,5.73624]
[1723910764197,2.2997,2615.3,2614.9,2.86812]
[1723910764405,5.73541,2615.4,2614.9,2.86812]
[1723910764613,2.2997,2615.2,2614.9,2.86812]
[1723910765409,2.2997,2615.2,2614.8,2.86828]
[1723910770010,2.2997,2615.2,2614.4,1.318]
[1723910770011,2.86807,2615.0,2614.3,8.27367]
[1723910770210,2.2997,2614.9,2614.5,2.86856]
[1723910771650,2.2997,2614.9,2613.7,2.86941]
[1723910771651,2.86879,2614.4,2613.7,2.86941]
[1723910771851,4.18695,2614.2,2613.6,2.86953]
[1723910772007,2.86911,2614.1,2613.6,2.86953]
[1723910772348,2.86919,2614.0,2613.4,2.86975]
[1723910772550,2.86945,2613.8,2613.2,2.86998]
[1723910772751,5.16915,2613.8,2613.2,2.86998]
[1723910773249,4.18784,2613.4,2612.8,2.87041]
[1723910773624,1.318,2613.4,2612.6,2.87062]
[1723910773825,1.318,2613.4,2612.7,2.87049]
[1723910773826,2.86999,2613.3,2612.7,2.87049]
[1723910774323,2.86999,2613.3,2612.8,2.87047]
[1723910776224,2.86999,2613.3,2612.7,2.87058]
[1723910776619,5.74,2613.3,2612.7,2.87058]
[1723910776946,2.87006,2613.2,2612.6,2.87061]
[1723910777540,2.87006,2613.2,2612.7,2.87052]
[1723910780627,2.86982,2613.4,2612.7,2.87052]
[1723910781422,2.87,2613.3,2612.7,2.87052]
[1723910782246,2.87006,2613.2,2612.7,2.87052]
[1723910790641,2.87006,2613.2,2612.7,5.74105]
[1723910790848,2.87006,2613.2,2612.7,2.87052]
[1723910791554,2.87006,2613.2,2612.7,5.74105]
[1723910791954,2.87006,2613.2,2612.7,2.87052]
[1723910792381,2.87006,2613.2,2612.7,5.74105]
[1723910792778,2.87006,2613.2,2612.7,2.87052]
[1723910793796,2.2519,2613.1,2612.1,2.4049]
[1723910794021,0.573988,2613.2,2612.1,2.87117]
[1723910794022,2.2519,2612.7,2612.1,2.87117]
[1723910794359,5.12256,2612.7,2612.2,2.87114]
[1723910801715,2.87082,2612.5,2612.1,2.87117]
[1723910801902,2.87082,2612.5,2612.0,2.87136]
[1723910801903,0.418982,2612.4,2612.0,2.87136]
[1723910802208,5.74169,2612.5,2612.0,2.87136]
[1723910802378,5.26854,2612.3,2611.9,0.0381268]
[1723910807717,2.87114,2612.2,2611.9,0.0381268]
[1723910811208,5.26854,2612.3,2611.9,0.0381268]
[1723910813002,2.87114,2612.2,2611.9,0.0381268]
[1723910813201,3.685108,2612.2,2611.9,0.0381268]
[1723910813412,5.26854,2612.3,2611.9,0.0381268]
[1723910813998,8.13966,2612.3,2611.9,0.0381268]
[1723910814197,2.87115,2612.2,2611.9,0.0381268]
[1723910818112,2.3975,2612.9,2611.9,3.6930268]
[1723910818294,2.87061,2612.7,2612.2,2.87111]
[1723910818638,0.4606099,2613.8,2612.6,2.87068]
[1723910818962,2.87009,2613.2,2612.7,4.18954]
[1723910819092,2.87009,2613.2,2612.8,2.87047]
[1723910819798,2.87009,2613.2,2612.7,4.18958]
[1723910820307,5.26732,2613.4,2612.7,4.18958]
[1723910820308,2.86994,2613.3,2612.8,2.87048]
[1723910820531,2.87005,2613.2,2612.8,2.87048]
[1723910820696,2.87005,2613.2,2612.6,2.87068]
[1723910821120,5.2202,2613.1,2612.6,2.87068]
[1723910821628,5.2202,2613.1,2612.6,5.74132]
[1723910821790,5.2202,2613.1,2612.6,5.74128]
[1723910821993,2.35,2613.1,2612.6,2.87064]
[1723910822198,5.22016,2613.1,2612.6,2.8707]
[1723910823004,2.87039,2612.9,2612.4,2.87085]
[1723910823200,2.87039,2612.9,2612.2,2.87106]
[1723910823201,2.35,2612.8,2612.2,2.87106]
[1723910823417,2.35,2612.8,2612.3,5.87095]
[1723910823949,2.35,2612.8,2612.4,2.8709]
[1723910825525,5.22053,2612.8,2612.2,2.87104]
[1723910825851,2.87059,2612.7,2612.2,2.87104]
[1723910826756,2.87059,2612.7,2612.3,2.87102]
[1723910827553,2.87059,2612.7,2612.2,2.87104]
[1723910829456,2.35,2612.8,2612.2,2.87104]
[1723910829632,2.35,2612.8,2612.4,2.87091]
[1723910831567,5.22049,2612.8,2612.4,2.87091]
[1723910832064,2.35,2612.8,2612.4,2.87085]
[1723910832791,2.87026,2613.0,2612.4,2.87085]
[1723910832990,3.444304,2613.0,2612.5,2.8708]
[1723910833387,2.35,2613.1,2612.3,2.4474]
[1723910833588,2.35,2613.3,2612.9,2.87031]
[1723910833962,2.35,2613.3,2612.9,5.74063]
[1723910834176,2.35,2613.3,2612.9,2.87031]
[1723910835456,5.21994,2613.3,2612.9,2.87031]
[1723910835662,7.054894,2613.3,2612.8,2.87047]
[1723910841119,4.184954,2613.3,2612.9,2.87037]
[1723910841307,7.39,2613.4,2613.1,2.87008]
[1723910841708,7.39,2613.4,2613.1,2.86758694]
[1723910841898,8.657516,2613.4,2613.1,2.86758694]
[1723910842305,7.39,2613.4,2613.1,2.86758694]
[1723910843133,2.4155,2613.5,2613.1,2.86758694]
[1723910847743,5.28521,2613.5,2613.1,2.86758694]
[1723910848744,5.28521,2613.5,2613.0,2.87025]
[1723910848942,36.08491405,2613.7,2612.6,1.318]
[1723910848943,3.6852,2613.2,2612.6,2.87066]
[1723910849141,6.5553,2613.2,2612.7,5.87059]
[1723910849520,5.2373,2613.2,2612.7,5.87059]
[1723910851331,5.2373,2613.2,2612.8,2.87047]
[1723910852230,6.179815,2613.2,2612.8,2.87047]
[1723910852943,9.049935,2613.2,2612.7,5.87058]
[1723910853247,6.179815,2613.2,2612.7,2.87058]
[1723910853448,0.9049935,2613.1,2612.7,2.87058]
[1723910854791,0.9049935,2613.1,2612.6,2.87066]
[1723910854989,4.1881,2613.2,2612.6,2.87066]
[1723910854990,2.3672,2613.0,2612.6,2.87066]
[1723910855785,5.23746,2613.0,2612.6,2.87066]
[1723910856486,2.3672,2613.0,2612.6,2.87066]
[1723910857095,2.3672,2613.0,2612.7,2.87056]
[1723910857462,2.3672,2613.0,2612.5,1.318]
[1723910857682,3.177944,2613.0,2612.6,2.87069]
[1723910858472,6.048254,2613.0,2612.5,2.8708]
[1723910858674,2.3672,2612.8,2612.4,5.87083]
[1723910858985,5.23768,2612.8,2612.4,5.87083]
[1723910859588,2.3672,2612.8,2612.4,5.87083]
[1723910861369,2.3672,2612.8,2612.4,8.7417]
[1723910861985,2.3672,2612.8,2612.5,2.87079]
[1723910863397,2.3679,2613.0,2612.7,2.87057]
[1723910864335,3.630704,2613.0,2612.7,2.87057]
[1723910865901,7.39,2613.1,2612.8,2.87045]
[1723910866103,7.39,2613.1,2612.9,2.87037]
[1723910866905,2.2976,2613.2,2612.9,2.87037]
[1723910867891,2.2976,2613.2,2612.7,2.87057]
[1723910867892,2.2976,2613.2,2612.8,2.87047]
[1723910868346,3.233144,2613.2,2612.8,2.87047]
[1723910877813,2.2976,2613.2,2612.9,2.87032]
[1723910878147,7.39,2613.5,2613.2,2.86993]
[1723910878346,19.95,2613.6,2613.4,2.86982]
[1723910878649,9.6876,2613.9,2613.5,2.86963]
[1723910878810,9.6876,2613.9,2613.6,2.86957]
[1723910879015,11.075077,2613.9,2613.5,2.86963]
[1723910881720,6.554347,2613.9,2613.4,2.86982]
[1723910881920,1.2292777,2613.8,2613.4,2.86982]
[1723910882533,3.7175,2613.7,2613.3,2.86992]
[1723910883680,2.3995,2614.0,2613.5,2.86961]
[1723910883856,2.3995,2614.0,2613.4,2.86981]
[1723910884939,31.0575,2614.2,2613.4,1.318]
[1723910885135,11.1075,2614.2,2613.8,2.86937]
[1723910885911,9.7895,2614.2,2613.8,2.86937]
[1723910886112,11.055339,2614.2,2613.8,2.86937]
[1723910886453,2.3995,2614.2,2613.9,2.86921]
[1723910886626,2.3995,2614.2,2613.7,2.86942]
[1723910886952,2.3995,2614.2,2613.7,5.73885]
[1723910887159,2.3995,2614.2,2613.7,2.86942]
[1723910887379,2.3995,2614.2,2613.9,2.86926]
[1723910887564,2.3995,2614.4,2613.9,2.86926]
[1723910887745,2.3995,2614.4,2614.0,2.86909]
[1723910888131,2.3995,2614.4,2613.9,2.86926]
[1723910888330,5.660316,2614.4,2613.9,2.86926]
[1723910888579,5.660316,2614.4,2613.9,5.73846]
[1723910888761,2.3995,2614.4,2613.9,2.8692]
[1723910889841,2.3995,2614.4,2614.0,2.8691]
[1723910890286,5.26823,2614.4,2613.9,2.8692]
[1723910890487,2.3995,2614.4,2613.9,5.7384]
[1723910890771,2.3995,2614.4,2613.9,2.8692]
[1723910892432,10.25866,2614.5,2614.0,2.8691]
[1723910893644,2.86866,2614.5,2614.0,2.8691]
[1723910893834,6.67811125,2614.5,2614.0,2.8691]
[1723910894236,6.67811125,2614.5,2613.9,2.8692]
[1723910894535,2.3995,2614.2,2613.8,2.86938]
[1723910894737,2.926334,2614.2,2613.8,2.86938]
[1723910895644,5.795354,2614.2,2613.6,2.86951]
[1723910895844,2.86907,2614.1,2613.6,2.86951]
[1723910896081,3.7354944,2614.1,2613.6,2.86951]
[1723910896234,2.8693,2613.9,2613.4,5.86976]
[1723910896436,2.8693,2613.9,2613.5,3.0]
[1723910896639,0.52688,2613.8,2613.4,5.86976]
[1723910897051,3.39626,2613.8,2613.4,5.86976]
[1723910897448,3.39626,2613.8,2613.3,2.8699]
[1723910897649,3.39626,2613.8,2613.2,5.29592]
[1723910897650,2.3995,2613.6,2613.2,2.86999]
[1723910897856,2.3995,2613.6,2613.2,5.73996]
[1723910898055,2.3995,2613.6,2613.2,2.86997]
[1723910899041,2.3995,2613.6,2613.2,5.73996]
[1723910900722,2.4856,2613.8,2613.3,2.86992]
[1723910903491,5.35499,2613.8,2613.3,2.86992]
[1723910905397,5.35499,2613.8,2613.2,2.86997]
[1723910905600,2.8695,2613.7,2613.2,5.73995]
[1723910905894,5.9191816,2613.8,2613.3,2.8699]
[1723910909188,3.0497916,2613.8,2613.4,2.8698]
[1723910909501,2.4856,2614.1,2613.7,2.86949]
[1723910911307,2.4856,2614.1,2613.8,2.86936]
[1723910911503,2.4856,2614.3,2614.0,2.86907]
[1723910911707,2.4856,2614.5,2614.1,2.869]
[1723910911906,3.0593,2614.5,2614.1,2.869]
[1723910912084,5.92791,2614.5,2614.1,2.869]
[1723910912591,3.0593,2614.5,2614.1,2.869]
[1723910914675,3.0593,2614.5,2614.1,5.738]
[1723910915106,3.0593,2614.5,2614.1,2.869]
[1723910919385,0.5737,2614.5,2614.1,2.869]
[1723910921595,3.44232,2614.5,2614.1,2.869]
[1723910921795,2.86862,2614.5,2614.1,2.869]
[1723910922620,2.86862,2614.5,2614.0,2.86914]
[1723910922917,2.4512,2614.4,2613.9,2.86917]
[1723910923084,5.606822,2614.4,2613.9,2.86917]
[1723910923515,5.606822,2614.4,2613.9,5.73839]
[1723910923890,2.738062,2614.4,2614.0,2.86916]
[1723910924079,2.4512,2614.4,2614.0,2.86916]
[1723910931321,2.4512,2614.4,2613.9,2.86917]
[1723910931530,2.4512,2614.4,2613.9,5.73838]
[1723910931898,5.31993,2614.4,2613.9,2.86917]
[1723910932092,6.138781,2614.4,2613.9,2.86917]
[1723910935625,6.138781,2614.4,2613.9,5.73838]
[1723910935926,5.31993,2614.4,2613.9,5.73838]
[1723910936102,5.31993,2614.4,2613.9,2.86917]
[1723910939804,2.4512,2614.4,2613.9,2.86917]
[1723910940128,7.39,2614.8,2613.8,1.317]
[1723910940129,7.39,2614.8,2614.2,2.86888]
[1723910940328,5.31969,2614.7,2614.3,2.86883]
[1723910941101,2.4513,2614.7,2614.3,2.86883]
[1723910941327,2.4513,2614.7,2614.3,2.86877]
[1723910941506,22.4013,2615.0,2614.5,2.86861]
[1723910941834,22.4013,2615.0,2614.7,2.86834]
[1723910941835,2.4513,2615.0,2614.7,2.86834]
[1723910941997,2.4513,2615.0,2614.6,4.18545]
[1723910942194,2.4513,2615.0,2614.7,2.86839]
[1723910942555,2.4513,2615.0,2614.3,2.86877]
[1723910942556,6.138098,2615.0,2614.3,2.86877]
[1723910942704,2.86823,2614.9,2614.4,5.86865]
[1723910943303,5.31939,2615.0,2614.5,2.86861]
[1723910943522,5.983029,2615.0,2614.5,2.86861]
[1723910944927,5.983029,2615.0,2614.5,5.73722]
[1723910945131,5.983029,2615.0,2614.5,5.73717]
[1723910945726,5.983029,2615.0,2614.6,2.86847]
[1723910947329,5.983029,2615.0,2614.5,2.86856]
[1723910948425,5.983029,2615.0,2614.4,3.0]
[1723910948426,4.9152429,2614.9,2614.4,5.86872]
[1723910948838,4.9152429,2614.9,2614.5,2.86861]
[1723910949154,2.0470029,2614.9,2614.5,2.86855]
[1723910949350,0.7300029,2614.9,2614.5,2.86855]
[1723910949531,0.7300029,2614.9,2614.5,5.73711]
[1723910949734,0.7300029,2614.9,2614.5,2.86855]
[1723910949939,0.7300029,2614.9,2614.5,5.7371]
[1723910950726,2.4513,2615.0,2614.8,2.86823]
[1723910950919,2.4513,2615.2,2614.8,2.86823]
[1723910951119,3.722214,2615.2,2614.8,2.86823]
[1723910951343,2.4513,2615.2,2614.8,2.86823]
[1723910953025,3.7683,2615.2,2614.8,2.86823]
[1723910955162,6.63615,2615.2,2614.8,2.86823]
[1723910955564,3.7683,2615.2,2614.8,2.86823]
[1723910955873,4.59737715,2615.2,2614.8,2.86823]
[1723910956379,3.7683,2615.2,2614.8,2.86823]
[1723910960259,2.4513,2615.2,2614.8,2.86823]
[1723910961289,2.8678,2615.3,2614.8,2.86823]
[1723910963154,9.7964,2615.4,2614.7,1.317]
[1723910963353,9.7964,2615.4,2615.0,5.73601]
[1723910963566,9.7964,2615.4,2615.0,2.868]
[1723910963766,9.7964,2615.4,2615.0,2.86799]
[1723910964359,9.7964,2615.4,2615.0,5.736]
[1723910964553,9.7964,2615.4,2615.0,2.86799]
[1723910965160,9.7964,2615.4,2615.0,5.736]
[1723910965365,9.7964,2615.4,2615.0,2.86799]
[1723910965790,11.1134,2615.4,2615.0,2.86799]
[1723910965960,14.92285125,2615.4,2615.0,2.86799]
[1723910967958,7.53285125,2615.4,2615.0,2.86799]
[1723910968161,3.7234,2615.4,2615.0,2.86799]
[1723910973460,6.59104,2615.4,2615.0,2.86799]
[1723910977789,3.7234,2615.4,2615.0,2.86799]
[1723910983670,1.317,2615.2,2614.6,2.86843]
[1723910983875,5.35781,2615.1,2614.6,2.86843]
[1723910984105,5.35776,2615.1,2614.6,2.86842]
[1723910985018,5.35776,2615.1,2614.6,5.73687]
[1723910985408,5.35776,2615.1,2614.7,2.86839]
[1723910985604,2.4898,2615.1,2614.7,2.86839]
[1723910990882,5.893537,2615.1,2614.6,2.86842]
[1723910991178,5.893537,2615.1,2614.6,5.73687]
[1723910991374,5.893537,2615.1,2614.7,2.86837]
[1723910991906,3.025567,2615.1,2614.7,2.86837]
[1723910993096,3.025567,2615.1,2614.4,3.0]
[1723910993097,4.9061617,2615.0,2614.4,5.86862]
[1723910993295,4.9061617,2615.0,2614.5,2.86861]
[1723910993296,4.18512,2615.0,2614.5,2.86861]
[1723910995682,5.35776,2615.1,2614.6,2.86849]
[1723910996014,2.4898,2615.1,2614.7,2.86838]
[1723910996222,10.2577,2615.4,2614.8,2.86822]
[1723910996223,2.4898,2615.3,2614.8,2.86822]
[1723910996516,5.35754,2615.3,2614.8,2.86822]
[1723910997015,5.35754,2615.3,2614.9,2.86816]
[1723910997213,5.96815776,2615.3,2614.9,2.86816]
[1723911000013,5.96815776,2615.3,2614.8,2.86827]
[1723911000187,10.15297776,2615.3,2614.8,2.86827]
[1723911000385,4.18501,2615.1,2614.6,2.86843]
[1723911000588,5.18317,2615.0,2614.6,2.86843]
[1723911004157,2.3151,2615.0,2614.6,2.86843]
[1723911006402,2.3151,2615.0,2614.6,5.73688]
[1723911006596,2.3151,2615.0,2614.6,5.73686]
[1723911007321,2.3151,2615.0,2614.6,2.86843]
[1723911008187,2.3151,2615.0,2614.6,5.73688]
[1723911008388,4.77609633,2615.2,2614.7,2.86836]
[1723911008625,5.18295,2615.2,2614.7,2.86836]
[1723911008824,6.727027,2615.2,2614.7,2.86836]
[1723911010801,2.3151,2615.2,2614.7,2.86833]
[1723911011000,5.18297,2615.2,2614.6,2.86846]
[1723911011187,2.3151,2615.0,2614.6,5.7369]
[1723911011392,2.3151,2615.0,2614.6,2.86844]
[1723911012600,5.18295,2615.2,2614.7,2.86831]
[1723911014111,2.3151,2615.2,2614.8,2.86828]
[1723911014332,9.7051,2615.4,2615.0,2.86806]
[1723911014542,0.739,2615.3,2615.0,2.86806]
[1723911014844,0.739,2615.3,2614.9,2.86816]
[1723911015049,12.57278,2615.4,2614.9,2.86816]
[1723911015503,5.18278,2615.4,2614.9,2.86816]
[1723911016492,2.86774,2615.3,2614.9,2.86816]
[1723911018897,2.3151,2615.4,2614.9,2.86811]
[1723911018898,5.18273,2615.4,2614.9,2.86811]
[1723911019546,6.119459,2615.4,2614.9,2.86811]
[1723911020797,6.119459,2615.4,2614.7,2.86832]
[1723911020798,4.18474,2615.3,2614.8,2.86828]
[1723911021407,7.05255,2615.3,2614.8,2.86828]
[1723911021607,8.0829879,2615.3,2614.8,2.86828]
[1723911022151,2.36,2615.2,2614.8,2.86828]
[1723911025188,2.36,2615.2,2614.6,2.86843]
[1723911025189,4.18501,2615.1,2614.6,2.86843]
[1723911025692,2.36,2615.0,2614.6,2.86843]
[1723911027594,2.36,2615.0,2614.7,2.86839]
[1723911027814,2.86801,2615.1,2614.7,2.86839]
[1723911027955,2.36,2615.2,2614.7,2.86839]
[1723911028160,2.36,2615.2,2614.7,2.86834]
[1723911028497,10.2578,2615.3,2614.9,5.73628]
[1723911028498,7.39,2615.3,2614.9,5.73628]
[1723911028701,7.39,2615.3,2614.9,2.86811]
[1723911028989,7.39,2615.3,2614.8,2.4883]
[1723911028990,7.39,2615.3,2615.0,2.86806]
[1723911033568,5.22756,2615.5,2615.0,2.86806]
[1723911034533,11.57438,2615.7,2614.8,5.35651]
[1723911034534,7.39,2615.7,2614.9,1.39347642]
[1723911034740,7.39,2615.7,2615.2,2.86775]
[1723911034741,9.75,2615.7,2615.2,2.86775]
[1723911034954,13.01130848,2615.7,2615.2,2.86775]
[1723911035158,9.75,2615.7,2615.2,2.86775]
[1723911035745,9.75,2615.7,2615.3,2.86773]
[1723911036634,9.75,2615.7,2615.3,2.86767]
[1723911037236,9.75,2615.7,2615.2,5.35614]
[1723911037789,12.6173,2615.7,2615.2,5.35614]
[1723911039384,5.2273,2615.7,2615.2,5.35614]
[1723911042208,5.2273,2615.7,2615.3,2.86773]
[1723911043007,2.4918,2615.9,2615.6,2.86735]
[1723911043168,26.62573,2616.1,2615.5,2.86751]
[1723911043357,5.3588,2616.0,2615.5,2.86751]
[1723911045301,5.3588,2616.0,2615.4,5.73512]
[1723911045650,5.3588,2616.0,2615.5,2.86749]
[1723911045851,2.4918,2616.0,2615.6,2.86739]
[1723911046099,9.8818,2616.3,2615.7,1.317]
[1723911046272,9.8818,2616.3,2615.8,2.86708]
[1723911046608,2.86676,2616.2,2615.8,2.86708]
[1723911046818,2.86676,2616.2,2615.7,4.18429]
[1723911047176,2.86676,2616.2,2615.6,5.31855]
[1723911047987,2.86676,2616.2,2615.7,2.86729]
[1723911049975,2.4918,2616.1,2615.6,2.86735]
[1723911050333,5.35867,2616.1,2615.6,2.86735]
[1723911050476,5.35867,2616.1,2615.6,5.7347]
[1723911051875,5.35867,2616.1,2615.6,2.86735]
[1723911052391,5.35867,2616.1,2615.6,5.7347]
[1723911054017,5.35867,2616.1,2615.7,2.86729]
[1723911056015,2.4918,2616.1,2615.7,2.86729]
[1723911056216,12.74853,2616.3,2615.7,2.86729]
[1723911057019,2.86681,2616.2,2615.7,2.86729]
[1723911057386,2.86681,2616.2,2615.7,4.18429]
[1723911058248,2.86681,2616.2,2615.7,2.86729]
[1723911059183,2.4918,2616.1,2615.7,2.86729]
[1723911059454,2.4918,2615.9,2615.4,5.86754]
[1723911059743,2.86719,2615.8,2615.4,3.0]
[1723911060499,2.86719,2615.8,2615.4,5.86762]
[1723911060888,2.86719,2615.8,2615.4,3.0]
[1723911061256,2.4918,2615.9,2615.3,5.86767]
[1723911061385,2.4918,2615.9,2615.6,2.86739]
[1723911061638,5.35855,2616.2,2615.7,2.86723]
[1723911061938,1.157369,2616.1,2615.7,2.86723]
[1723911063259,5.35855,2616.2,2615.7,2.86723]
[1723911063445,5.35855,2616.2,2615.8,2.86718]
[1723911064341,2.4918,2616.2,2615.8,4.18413]
[1723911064540,7.39,2616.3,2616.0,2.86696]
[1723911064762,7.39,2616.3,2615.8,5.73421]
[1723911065042,7.39,2616.3,2615.8,5.73423]
[1723911065902,7.39,2616.3,2615.8,2.8671]
[1723911066198,7.39,2616.3,2615.9,2.86708]
[1723911069180,29.38396,2616.4,2615.9,2.86708]
[1723911070409,33.19341125,2616.4,2615.9,2.86708]
[1723911070575,2.86665,2616.3,2615.9,2.86708]
[1723911071414,2.86665,2616.3,2615.8,2.86718]
[1723911073330,2.86697,2616.0,2615.5,2.86746]
[1723911073528,2.3838,2616.1,2615.6,2.8674]
[1723911073725,5.2507,2616.1,2615.6,2.8674]
[1723911075396,2.3838,2616.1,2615.7,2.86726]
[1723911076535,2.3838,2616.1,2615.6,2.8674]
[1723911076536,5.25067,2616.1,2615.6,2.8674]
[1723911077139,2.86701,2616.0,2615.4,5.73506]
[1723911077302,2.3838,2615.9,2615.5,3.0]
[1723911077627,2.3838,2615.9,2615.5,5.86751]
[1723911079741,2.3838,2615.9,2615.3,1.317]
[1723911079742,1.317,2615.8,2615.1,2.3968]
[1723911079939,1.317,2615.8,2614.7,2.00579945]
[1723911079940,2.8677,2615.4,2614.8,2.86819]
[1723911080094,2.2901,2615.5,2615.0,2.86806]
[1723911080293,2.2901,2615.5,2615.0,2.868]
[1723911080517,2.2901,2615.5,2615.2,2.86779]
[1723911081437,2.2901,2615.5,2615.3,2.86773]
[1723911081837,2.2901,2615.5,2615.1,5.7358]
[1723911082226,2.2901,2615.5,2615.1,2.86786]
[1723911083527,2.86769,2615.4,2614.9,2.8681]
[1723911083754,2.86763,2615.4,2614.9,2.86807]
[1723911083955,2.86763,2615.4,2614.9,5.73619]
[1723911084664,2.86763,2615.4,2614.9,2.86807]
[1723911086138,5.73532,2615.4,2614.9,2.86807]
[1723911086464,2.86763,2615.4,2614.9,2.86807]
[1723911086668,2.86763,2615.4,2614.9,5.73619]
[1723911086835,2.86763,2615.4,2614.9,2.86807]
[1723911087637,2.86763,2615.4,2614.9,5.73619]
[1723911087832,2.86763,2615.4,2614.9,2.86807]
[1723911088065,2.86763,2615.4,2614.9,5.73618]
[1723911088268,2.86763,2615.4,2614.9,2.86807]
[1723911089673,2.86763,2615.4,2614.9,5.73619]
[1723911089871,2.86763,2615.4,2614.9,2.86807]
[1723911090168,2.86763,2615.4,2614.9,5.73619]
[1723911090365,2.86763,2615.4,2614.9,2.86807]
[1723911090774,2.86774,2615.3,2614.9,2.86807]
[1723911090971,2.86823,2614.9,2614.3,2.4193]
[1723911091171,2.86816,2615.0,2614.5,5.73716]
[1723911091373,2.86816,2615.0,2614.6,2.8685]
[1723911091673,2.86792,2615.2,2614.7,2.8683]
[1723911091876,3.670493,2615.2,2614.7,2.8683]
[1723911093060,0.802573,2615.2,2614.8,2.86822]
[1723911093376,2.2901,2615.3,2614.9,2.86812]
[1723911094045,5.15787,2615.3,2614.9,2.86812]
[1723911094265,3.092644,2615.3,2614.9,2.86812]
[1723911097146,5.960384,2615.3,2614.9,2.86812]
[1723911097341,5.960384,2615.3,2614.8,2.86828]
[1723911097560,5.15784,2615.3,2614.8,2.86828]
[1723911099491,2.86785,2615.2,2614.7,4.18538]
[1723911099854,2.2901,2615.0,2614.6,5.737]
[1723911100057,2.2901,2615.0,2614.6,5.73695]
[1723911100261,2.2901,2615.0,2614.6,2.86845]
[1723911100483,2.2901,2615.0,2614.6,5.73689]
[1723911100955,2.2901,2615.0,2614.6,2.86844]
[1723911101857,5.15818,2615.0,2614.6,2.86844]
[1723911102052,5.15818,2615.0,2614.4,1.317]
[1723911102053,2.86823,2614.9,2614.4,1.317]
[1723911102313,2.86823,2614.9,2614.4,4.18567]
[1723911103412,2.86823,2614.9,2614.4,7.05434]
[1723911104058,2.86823,2614.9,2614.4,4.18567]
[1723911105398,2.86823,2614.9,2614.4,5.73733]
[1723911105708,2.86823,2614.9,2614.4,2.86866]
[1723911106214,2.86823,2614.9,2614.4,5.73733]
[1723911106515,2.86823,2614.9,2614.4,2.86866]
[1723911106865,2.86823,2614.9,2614.4,5.73733]
[1723911107095,2.86823,2614.9,2614.4,2.86866]
[1723911107281,2.86823,2614.9,2614.4,5.73733]
[1723911108306,2.86823,2614.9,2614.4,2.86866]
[1723911108707,2.86823,2614.9,2614.4,5.73733]
[1723911108926,2.86823,2614.9,2614.4,2.86866]
[1723911109363,2.86823,2614.9,2614.4,5.7373]
[1723911109711,2.86823,2614.9,2614.4,2.86864]
[1723911110467,2.86823,2614.9,2614.4,5.73731]
[1723911111565,5.15818,2615.0,2614.5,2.8686]
[1723911112009,5.15818,2615.0,2614.5,4.1856]
[1723911114282,8.02633,2615.0,2614.5,4.1856]
[1723911114874,2.8684,2614.7,2614.2,8.18526]
[1723911115107,5.18281,2614.6,2614.2,2.86886]
[1723911115684,2.86884,2614.3,2613.8,2.8693]
[1723911115995,2.86884,2614.3,2613.6,2.3164]
[1723911115996,2.3143,2614.1,2613.7,2.86947]
[1723911116777,2.3143,2614.1,2613.7,5.7389]
[1723911117595,2.3143,2614.1,2613.7,2.86943]
[1723911117997,5.18337,2614.1,2613.5,4.18663]
[1723911118204,5.18337,2614.1,2613.6,3.0]
[1723911119011,5.18337,2614.1,2613.6,5.86958]
[1723911119413,5.18337,2614.1,2613.7,2.86948]
[1723911119617,2.3143,2614.3,2613.9,2.86919]
[1723911122785,2.3143,2614.3,2614.0,2.86912]
[1723911122989,5.29103,2614.5,2614.0,2.86912]
[1723911123185,2.4224,2614.5,2614.0,2.86912]
[1723911123813,2.4224,2614.5,2614.1,2.86904]